fUST/lending_fUST_20250622
["ID","MTS","AMOUNT","RATE_DAILY","PERIOD"]
[366885617,1750549849609,-498.04,0.00022518,2]
[366885618,1750549849619,-460.0,0.00022519,2]
[366885619,1750549849630,-460.0,0.00022519,2]
[366885620,1750549849640,-1251.3,0.00022519,2]
[366885621,1750549849650,-460.0,0.00022519,2]
[366885622,1750549849659,-930.03,0.00022519,2]
[366885623,1750549849670,-1268.97,0.00022519,2]
[366885624,1750549849680,-460.0,0.00022519,2]
[366885625,1750549849690,-171.00142421,0.00022519,2]
[366885626,1750549849700,-460.0,0.00022519,2]
[366885627,1750549849709,-1261.78,0.00022519,2]
[366885628,1750549849718,-1710.11,0.00022519,2]
[366885629,1750549849727,-463.03,0.00022519,2]
[366885630,1750549849737,-460.0,0.00022519,2]
[366885631,1750549849746,-151.0,0.00022519,7]
[366885632,1750549849755,-460.0,0.00022519,2]
[366885633,1750549849765,-460.0,0.00022519,2]
[366885634,1750549849774,-460.0,0.00022519,2]
[366885635,1750549849783,-556.55,0.00022519,2]
[366885636,1750549849793,-556.55,0.00022519,2]
[366885637,1750549849802,-556.55,0.00022519,2]
[366885638,1750549849813,-556.55,0.00022519,2]
[366885639,1750549849823,-556.71,0.00022519,2]
[366885640,1750549849832,-1000.0,0.00022521,2]
[366885641,1750549849842,-500.0,0.00022521,2]
[366885642,1750549849851,-1000.0,0.00022521,2]
[366885643,1750549849865,-1000.0,0.00022521,2]
[366885644,1750549849875,-1000.0,0.00022521,2]
[366885645,1750549849884,-460.0,0.00022588,2]
[366885646,1750549849895,-498.04,0.00022588,2]
[366885647,1750549849904,-596.58,0.00022589,2]
[366885648,1750549849914,-460.0,0.00022589,2]
[366885649,1750549849924,-460.0,0.00022589,2]
[366885650,1750549849934,-460.0,0.00022589,2]
[366885651,1750549849943,-460.0,0.00022589,2]
[366885652,1750549849953,-220.93,0.00022589,2]
[366885653,1750549849963,-460.0,0.00022589,2]
[366885654,1750549849973,-597.14,0.00022589,2]
[366885655,1750549849983,-500.0,0.00022589,2]
[366885656,1750549849992,-460.0,0.00022589,2]
[366885657,1750549850002,-460.0,0.00022589,2]
[366885658,1750549850011,-151.0,0.000226,5]
[366885659,1750549850021,-1251.3,0.00022623,2]
[366885660,1750549850030,-930.03,0.00022623,2]
[366885661,1750549850039,-1268.97,0.00022623,2]
[366885662,1750549850049,-460.0,0.00022623,2]
[366885663,1750549850059,-1261.78,0.00022623,2]
[366885664,1750549850068,-460.0,0.00022623,2]
[366885665,1750549850078,-12549.17366507,0.00022624,7]
[366885666,1750549850087,-213.55395994,0.00022624,7]
[366885667,1750549850096,-4032.59385907,0.00022624,7]
[366885668,1750549850108,-500.0,0.00022693,2]
[366885669,1750549850117,-230.10342898,0.00022694,2]
[366885670,1750549850127,-460.0,0.00022694,2]
[366885671,1750549850136,-424.93363889,0.00022694,2]
[366885672,1750549850146,-846.23824438,0.00022694,2]
[366885673,1750549850155,-12549.17366507,0.00022694,2]
[366885674,1750549850165,-160.0,0.00022694,2]
[366885675,1750549850175,-213.55395994,0.00022694,2]
[366885676,1750549850185,-160.0,0.00022694,2]
[366885677,1750549850193,-160.0,0.00022694,2]
[366885678,1750549850203,-836.41202323,0.00022694,2]
[366885679,1750549850212,-160.0,0.00022694,2]
[366885680,1750549850222,-460.0,0.00022695,2]
[366885681,1750549850231,-460.0,0.00022695,2]
[366885682,1750549850241,-460.0,0.00022695,2]
[366885683,1750549850251,-460.0,0.00022695,2]
[366885684,1750549850260,-1710.11,0.00022695,2]
[366885685,1750549850270,-463.03,0.00022695,2]
[366885686,1750549850280,-460.0,0.00022695,2]
[366885687,1750549850289,-460.0,0.00022695,2]
[366885688,1750549850299,-460.0,0.00022695,2]
[366885689,1750549850309,-7814.65238754,0.00022708,2]
[366885690,1750549850318,-764.96446876,0.00022736,2]
[366885691,1750549850328,-4032.59385907,0.00022797,7]
[366885692,1750549850337,-500.0,0.00022825,2]
[366885693,1750549850347,-151.0,0.000229,9]
[366885694,1750549850412,-168.0,0.00022914,2]
[366885695,1750549850427,-4032.59385907,0.00022969,8]
[366885696,1750549850437,-168.0,0.00022977,7]
[366885697,1750549850446,-460.0,0.00023011,2]
[366885698,1750549850456,-151.0,0.00023011,7]
[366885699,1750549850465,-498.04,0.00023011,2]
[366885700,1750549850475,-500.0,0.00023012,9]
[366885701,1750549850485,-500.0,0.00023012,9]
[366885702,1750549850494,-165.0,0.00023014,7]
[366885703,1750549850503,-1500.0,0.00023068,2]
[366885704,1750549850512,-509.8766494,0.00023068,2]
[366885705,1750549850522,-521.63883518,0.00023068,2]
[366885706,1750549850531,-515.63517607,0.00023068,2]
[366885707,1750549850540,-5233.43,0.000231,7]
[366885708,1750549850549,-1251.3,0.00023141,2]
[366885709,1750549850559,-930.03,0.00023141,2]
[366885710,1750549850569,-1268.97,0.00023141,2]
[366885711,1750549850579,-523.14058756,0.00023141,2]
[366885712,1750549850591,-1261.78,0.00023141,2]
[366885713,1750549850600,-460.0,0.00023141,2]
[366885714,1750549850612,-4032.59385907,0.00023141,8]
[366885715,1750549850623,-168.0,0.00023151,2]
[366885716,1750549850632,-7814.65238754,0.00023154,2]
[366885717,1750549850642,-420.0,0.00023162,2]
[366885718,1750549850651,-420.0,0.00023162,2]
[366885719,1750549850660,-151.0,0.000232,9]
[366885720,1750549850671,-764.96446876,0.00023246,2]
[366885721,1750549850681,-3600.36,0.00023277,3]
[366885722,1750549850690,-1800.18,0.00023277,3]
[366885723,1750549850699,-900.1,0.00023277,3]
[366885724,1750549850709,-450.04,0.00023277,3]
[366885725,1750549850718,-250.0,0.000233,30]
[366885726,1750549850727,-4032.59385907,0.00023314,9]
[366885727,1750549850737,-608.37,0.00023415,2]
[366885728,1750549850746,-498.04,0.00023415,2]
[366885729,1750549850757,-190.33998787,0.00023416,2]
[366885730,1750549850767,-460.0,0.00023416,2]
[366885731,1750549850776,-557.45,0.00023416,2]
[366885732,1750549850785,-460.0,0.00023416,2]
[366885733,1750549850795,-1710.11,0.00023416,2]
[366885734,1750549850804,-463.03,0.00023416,2]
[366885735,1750549850814,-460.0,0.00023416,2]
[366885736,1750549850824,-460.0,0.00023416,2]
[366885737,1750549850835,-460.0,0.00023416,2]
[366885738,1750549850845,-1251.3,0.00023486,2]
[366885739,1750549850854,-930.03,0.00023486,2]
[366885740,1750549850865,-1268.97,0.00023486,2]
[366885741,1750549850875,-1261.78,0.00023486,2]
[366885742,1750549850885,-460.0,0.00023486,2]
[366885743,1750549850895,-4032.59385907,0.00023486,9]
[366885744,1750549850905,-500.0,0.00023496,2]
[366885745,1750549850915,-460.0,0.00023497,2]
[366885746,1750549850924,-460.0,0.00023497,2]
[366885747,1750549850934,-460.0,0.00023497,2]
[366885748,1750549850944,-570.21,0.00023497,2]
[366885749,1750549850953,-570.21,0.00023497,2]
[366885750,1750549850963,-570.21,0.00023497,2]
[366885751,1750549850972,-1749.52,0.00023497,2]
[366885752,1750549850982,-1749.52,0.00023497,2]
[366885753,1750549850991,-1749.52,0.00023497,2]
[366885754,1750549851000,-507.68,0.00023497,2]
[366885755,1750549851010,-507.68,0.00023497,2]
[366885756,1750549851020,-507.68,0.00023497,2]
[366885757,1750549851030,-151.0,0.00023499,7]
[366885758,1750549851041,-151.0,0.000235,7]
[366885759,1750549851050,-79076.21,0.000235,2]
[366885760,1750549851060,-596.58,0.00023502,2]
[366885761,1750549851070,-460.0,0.00023502,2]
[366885762,1750549851079,-460.0,0.00023502,2]
[366885763,1750549851089,-185.2582992,0.00023502,2]
[366885764,1750549851099,-460.0,0.00023502,2]
[366885765,1750549851114,-460.0,0.00023502,2]
[366885766,1750549851129,-151.0,0.00023502,7]
[366885767,1750549851138,-500.0,0.00023502,2]
[366885768,1750549851147,-460.0,0.00023502,2]
[366885769,1750549851157,-500.0,0.0002356,10]
[366885770,1750549851166,-7814.65238754,0.00023599,2]
[366885771,1750549851175,-1036.18301861,0.00023616,2]
[366885772,1750549851184,-160.0,0.00023647,2]
[366885773,1750549851194,-1251.3,0.00023658,2]
[366885774,1750549851203,-930.03,0.00023658,2]
[366885775,1750549851213,-1268.97,0.00023658,2]
[366885776,1750549851222,-1261.78,0.00023658,2]
[366885777,1750549851231,-460.0,0.00023658,2]
[366885778,1750549851241,-4032.59385907,0.00023659,9]
[366885779,1750549851250,-596.58,0.00023699,2]
[366885780,1750549851260,-460.0,0.00023699,2]
[366885781,1750549851269,-460.0,0.00023699,2]
[366885782,1750549851279,-460.0,0.00023699,2]
[366885783,1750549851288,-460.0,0.00023699,2]
[366885784,1750549851297,-460.0,0.00023699,2]
[366885785,1750549851307,-500.0,0.00023699,2]
[366885786,1750549851316,-570.21,0.00023699,2]
[366885787,1750549851325,-1749.52,0.00023699,2]
[366885788,1750549851334,-460.0,0.00023699,2]
[366885789,1750549851344,-507.68,0.00023699,2]
[366885790,1750549851353,-151.0,0.000237,10]
[366885791,1750549851365,-166.239334,0.00023705,2]
[366885792,1750549851375,-500.0,0.00023708,2]
[366885793,1750549851384,-1251.3,0.00023709,2]
[366885794,1750549851393,-930.03,0.00023709,2]
[366885795,1750549851403,-460.0,0.00023709,2]
[366885796,1750549851412,-1268.97,0.00023709,2]
[366885797,1750549851479,-570.21,0.00023709,2]
[366885798,1750549851489,-1261.78,0.00023709,2]
[366885799,1750549851498,-1749.52,0.00023709,2]
[366885800,1750549851507,-507.68,0.00023709,2]
[366885801,1750549851517,-498.04,0.00023709,2]
[366885802,1750549851526,-460.0,0.00023709,2]
[366885803,1750549851535,-207.4,0.0002371,2]
[366885804,1750549851545,-300.0,0.0002371,2]
[366885805,1750549851554,-800.0,0.0002371,2]
[366885806,1750549851564,-300.0,0.0002371,2]
[366885807,1750549851575,-800.0,0.0002371,2]
[366885808,1750549851586,-300.0,0.0002371,2]
[366885809,1750549851595,-800.0,0.0002371,2]
[366885810,1750549851605,-300.0,0.0002371,2]
[366885811,1750549851615,-800.0,0.0002371,2]
[366885812,1750549851624,-800.0,0.0002371,2]
[366885813,1750549851634,-300.0,0.0002371,2]
[366885814,1750549851643,-300.0,0.0002371,2]
[366885815,1750549851655,-800.0,0.0002371,2]
[366885816,1750549851664,-300.0,0.0002371,2]
[366885817,1750549851674,-800.0,0.0002371,2]
[366885818,1750549851683,-300.0,0.0002371,2]
[366885819,1750549851692,-800.0,0.0002371,2]
[366885820,1750549851702,-300.0,0.0002371,2]
[366885821,1750549851711,-800.0,0.0002371,2]
[366885822,1750549851721,-300.0,0.0002371,2]
[366885823,1750549851730,-800.0,0.0002371,2]
[366885824,1750549851740,-300.0,0.0002371,2]
[366885825,1750549851749,-300.0,0.0002371,2]
[366885826,1750549851759,-800.0,0.0002371,2]
[366885827,1750549851771,-800.0,0.0002371,2]
[366885828,1750549851782,-300.0,0.0002371,2]
[366885829,1750549851791,-800.0,0.0002371,2]
[366885830,1750549851800,-300.0,0.0002371,2]
[366885831,1750549851813,-800.0,0.0002371,2]
[366885832,1750549851823,-300.0,0.0002371,2]
[366885833,1750549851832,-800.0,0.0002371,2]
[366885834,1750549851842,-25000.0,0.0002371,2]
[366885835,1750549851851,-396.88900501,0.0002371,2]
[366885836,1750549851863,-344.0,0.00023717,6]
[366885837,1750549851874,-764.96446876,0.00023756,2]
[366885838,1750549851883,-1251.3,0.00023798,2]
[366885839,1750549851892,-930.03,0.00023798,2]
[366885840,1750549851902,-1268.97,0.00023798,2]
[366885841,1750549851912,-1261.78,0.00023798,2]
[366885842,1750549851923,-500.0,0.00023798,2]
[366885843,1750549851933,-460.0,0.00023798,2]
[366885844,1750549851943,-460.0,0.00023799,2]
[366885845,1750549851959,-460.0,0.00023799,2]
[366885846,1750549851978,-460.0,0.00023799,2]
[366885847,1750549851996,-460.0,0.00023799,2]
[366885848,1750549852015,-460.0,0.00023799,2]
[366885849,1750549852033,-600.01,0.00023799,2]
[366885850,1750549852052,-151.0,0.00023799,7]
[366885851,1750549852068,-570.21,0.00023799,2]
[366885852,1750549852087,-570.21,0.00023799,2]
[366885853,1750549852102,-570.21,0.00023799,2]
[366885854,1750549852122,-570.21,0.00023799,2]
[366885855,1750549852140,-570.21,0.00023799,2]
[366885856,1750549852160,-570.21,0.00023799,2]
[366885857,1750549852174,-570.21,0.00023799,2]
[366885858,1750549852189,-570.32,0.00023799,2]
[366885859,1750549852207,-1749.52,0.00023799,2]
[366885860,1750549852221,-1749.52,0.00023799,2]
[366885861,1750549852235,-1749.52,0.00023799,2]
[366885862,1750549852249,-1749.52,0.00023799,2]
[366885863,1750549852263,-1749.52,0.00023799,2]
[366885864,1750549852276,-1749.52,0.00023799,2]
[366885865,1750549852290,-1749.52,0.00023799,2]
[366885866,1750549852303,-1749.62,0.00023799,2]
[366885867,1750549852317,-507.68,0.00023799,2]
[366885868,1750549852331,-507.68,0.00023799,2]
[366885869,1750549852345,-507.68,0.00023799,2]
[366885870,1750549852360,-507.68,0.00023799,2]
[366885871,1750549852375,-507.68,0.00023799,2]
[366885872,1750549852388,-507.68,0.00023799,2]
[366885873,1750549852401,-507.68,0.00023799,2]
[366885874,1750549852415,-507.8041529,0.00023799,2]
[366885875,1750549852429,-460.0,0.0002383,2]
[366885876,1750549852443,-460.0,0.0002383,2]
[366885877,1750549852457,-1710.11,0.0002383,2]
[366885878,1750549852471,-463.03,0.0002383,2]
[366885879,1750549852485,-460.0,0.0002383,2]
[366885880,1750549852499,-460.0,0.0002383,2]
[366885881,1750549852513,-460.0,0.0002383,2]
[366885882,1750549852527,-4032.59385907,0.00023831,10]
[366885883,1750549852540,-344.0,0.00023867,6]
[366885884,1750549852553,-500.0,0.00023871,2]
[366885885,1750549852567,-498.04,0.00023871,2]
[366885886,1750549852581,-158.457743,0.00023904,2]
[366885887,1750549852598,-500.0,0.00023934,2]
[366885888,1750549852614,-498.04,0.00023934,2]
[366885889,1750549852627,-1251.3,0.00023943,2]
[366885890,1750549852639,-1251.3,0.00023943,2]
[366885891,1750549852648,-1251.3,0.00023943,2]
[366885892,1750549852759,-1251.3,0.00023943,2]
[366885893,1750549852768,-1251.49102316,0.00023943,2]
[366885894,1750549852778,-930.03,0.00023943,2]
[366885895,1750549852787,-930.03,0.00023943,2]
[366885896,1750549852796,-930.03,0.00023943,2]
[366885897,1750549852806,-930.03,0.00023943,2]
[366885898,1750549852816,-930.11093152,0.00023943,2]
[366885899,1750549852826,-1268.97,0.00023943,2]
[366885900,1750549852835,-1268.97,0.00023943,2]
[366885901,1750549852844,-1268.97,0.00023943,2]
[366885902,1750549852854,-1268.97,0.00023943,2]
[366885903,1750549852867,-1269.0987279,0.00023943,2]
[366885904,1750549852877,-1261.78,0.00023943,2]
[366885905,1750549852886,-1261.78,0.00023943,2]
[366885906,1750549852895,-1261.78,0.00023943,2]
[366885907,1750549852905,-1261.78,0.00023943,2]
[366885908,1750549852914,-1261.9,0.00023943,2]
[366885909,1750549852923,-500.0,0.00023943,2]
[366885910,1750549852933,-153.148426,0.00023943,7]
[366885911,1750549852942,-460.0,0.00023943,2]
[366885912,1750549852951,-549.66776426,0.00023943,2]
[366885913,1750549852960,-498.04,0.00023947,2]
[366885914,1750549852970,-380.0,0.00023948,2]
[366885915,1750549852979,-151.0,0.00023948,7]
[366885916,1750549852988,-151.0,0.00023948,7]
[366885917,1750549852997,-151.0,0.00023948,7]
[366885918,1750549853007,-460.0,0.00023948,2]
[366885919,1750549853018,-460.0,0.00023948,2]
[366885920,1750549853027,-151.0,0.00023948,7]
[366885921,1750549853036,-460.0,0.00023948,2]
[366885922,1750549853046,-460.0,0.00023948,2]
[366885923,1750549853055,-500.0,0.00023948,2]
[366885924,1750549853064,-500.0,0.00023948,2]
[366885925,1750549853074,-1710.11,0.00023948,2]
[366885926,1750549853083,-1710.11,0.00023948,2]
[366885927,1750549853094,-463.03,0.00023948,2]
[366885928,1750549853103,-463.03,0.00023948,2]
[366885929,1750549853115,-460.0,0.00023948,2]
[366885930,1750549853125,-460.0,0.00023948,2]
[366885931,1750549853135,-498.04,0.00023948,2]
[366885932,1750549853145,-498.04,0.00023948,2]
[366885933,1750549853156,-498.04,0.00023948,2]
[366885934,1750549853167,-498.04,0.00023948,2]
[366885935,1750549853177,-498.04,0.00023948,2]
[366885936,1750549853190,-498.1,0.00023948,2]
[366885937,1750549853202,-460.0,0.00023948,2]
[366885938,1750549853211,-460.0,0.00023948,2]
[366885939,1750549853221,-460.0,0.00023948,2]
[366885940,1750549853231,-460.0,0.00023948,2]
[366885941,1750549853240,-44938.94632879,0.00023949,2]
[366885942,1750549853250,-596.58,0.00023969,2]
[366885943,1750549853259,-460.0,0.00023969,2]
[366885944,1750549853268,-460.0,0.00023969,2]
[366885945,1750549853278,-460.0,0.00023969,2]
[366885946,1750549853288,-460.0,0.00023969,2]
[366885947,1750549853298,-500.0,0.00023969,2]
[366885948,1750549853310,-460.0,0.00023969,2]
[366885949,1750549853320,-500.0,0.00023972,2]
[366885950,1750549853330,-500.0,0.00023972,2]
[366885951,1750549853340,-500.0,0.00023972,2]
[366885952,1750549853350,-450.0638245,0.00023972,2]
[366885953,1750549853359,-306.44327468,0.00023973,2]
[366885954,1750549853370,-500.0,0.00023973,2]
[366885955,1750549853379,-500.0,0.00023973,2]
[366885956,1750549853389,-500.0,0.00023973,2]
[366885957,1750549853399,-212.79722987,0.00023973,2]
[366885958,1750549853409,-500.0,0.00023973,2]
[366885959,1750549853419,-500.0,0.00023973,2]
[366885960,1750549853428,-500.0,0.00023973,2]
[366885961,1750549853438,-500.0,0.00023973,2]
[366885962,1750549853448,-500.0,0.00023973,2]
[366885963,1750549853458,-503.20309577,0.00023973,2]
[366885964,1750549853468,-500.0,0.00023973,2]
[366885965,1750549853477,-500.0,0.00023973,2]
[366885966,1750549853488,-500.0,0.00023973,2]
[366885967,1750549853498,-500.0,0.00023973,2]
[366885968,1750549853508,-500.0,0.00023973,2]
[366885969,1750549853518,-500.0,0.00023973,2]
[366885970,1750549853528,-500.0,0.00023973,2]
[366885971,1750549853539,-502.97608695,0.00023973,2]
[366885972,1750549853756,-500.0,0.00023973,2]
[366885973,1750549853767,-500.0,0.00023973,2]
[366885974,1750549853778,-579.6336408,0.00023973,2]
[366885975,1750549853788,-555.82829724,0.00023973,2]
[366885976,1750549853798,-500.0,0.00023973,2]
[366885977,1750549853808,-501.01766854,0.00023973,2]
[366885978,1750549853819,-500.0,0.00023973,2]
[366885979,1750549853828,-500.0,0.00023973,2]
[366885980,1750549853838,-516.82066677,0.00023973,2]
[366885981,1750549853849,-500.0,0.00023973,2]
[366885982,1750549853859,-500.0,0.00023973,2]
[366885983,1750549853870,-506.87102913,0.00023973,2]
[366885984,1750549853880,-500.0,0.00023973,2]
[366885985,1750549853889,-381.15923323,0.00023973,2]
[366885986,1750549853899,-351.41240846,0.00023973,2]
[366885987,1750549853909,-500.0,0.00023973,2]
[366885988,1750549853919,-441.22774082,0.00023973,2]
[366885989,1750549853930,-500.0,0.00023973,2]
[366885990,1750549853939,-167.19677086,0.00023973,2]
[366885991,1750549853950,-503.41899336,0.00023973,2]
[366885992,1750549853960,-150.91223692,0.00023973,2]
[366885993,1750549853974,-500.0,0.00023973,2]
[366885994,1750549853985,-500.0,0.00023973,2]
[366885995,1750549853995,-500.38764386,0.00023973,2]
[366885996,1750549854004,-500.0,0.00023973,2]
[366885997,1750549854015,-500.0,0.00023973,2]
[366885998,1750549854024,-600.0,0.00023973,2]
[366885999,1750549854034,-736.09193073,0.00023986,77]
[366886000,1750549854043,-500.0,0.0002399,2]
[366886001,1750549854053,-500.0,0.0002399,2]
[366886002,1750549854063,-596.58,0.00023999,2]
[366886003,1750549854073,-460.0,0.00023999,2]
[366886004,1750549854082,-189.71,0.00023999,2]
[366886005,1750549854091,-460.0,0.00023999,2]
[366886006,1750549854100,-500.0,0.00023999,2]
[366886007,1750549854110,-350.42864419,0.00023999,2]
[366886008,1750549854120,-152.118465,0.00024,7]
[366886009,1750549854129,-151.0,0.00024,7]
[366886010,1750549854138,-1190.26,0.00024,7]
[366886011,1750549854148,-288.648881,0.00024,7]
[366886012,1750549854158,-288.648881,0.00024,7]
[366886013,1750549854168,-163.834509,0.00024,7]
[366886014,1750549854178,-163.834509,0.00024,7]
[366886015,1750549854187,-151.0,0.00024,7]
[366886016,1750549854197,-30143.0,0.00024,2]
[366886017,1750549854206,-151.0,0.00024,6]
[366886018,1750549854216,-160.0,0.00024,7]
[366886019,1750549854225,-230.10342898,0.00024,7]
[366886020,1750549854235,-424.93363889,0.00024,7]
[366886021,1750549854244,-160.0,0.00024,7]
[366886022,1750549854253,-4032.59385907,0.00024003,10]
[366886023,1750549854261,-344.0,0.00024017,7]
[366886024,1750549854271,-460.0,0.00024037,2]
[366886025,1750549854280,-261.71842429,0.00024037,2]
[366886026,1750549854290,-1710.11,0.00024037,2]
[366886027,1750549854299,-463.03,0.00024037,2]
[366886028,1750549854308,-460.0,0.00024037,2]
[366886029,1750549854318,-460.0,0.00024037,2]
[366886030,1750549854327,-460.0,0.00024037,2]
[366886031,1750549854337,-151.0,0.00024076,7]
[366886032,1750549854346,-5233.43,0.000241,7]
[366886033,1750549854355,-151.0,0.000241,7]
[366886034,1750549854367,-151.0,0.000241,7]
[366886035,1750549854376,-151.0,0.000241,7]
[366886036,1750549854386,-230.10342898,0.000241,10]
[366886037,1750549854395,-523.9660634,0.000241,10]
[366886038,1750549854405,-460.0,0.00024109,2]
[366886039,1750549854414,-500.0,0.00024127,2]
[366886040,1750549854424,-596.58,0.00024166,2]
[366886041,1750549854437,-460.0,0.00024166,2]
[366886042,1750549854446,-460.0,0.00024166,2]
[366886043,1750549854456,-500.0,0.00024166,2]
[366886044,1750549854465,-344.0,0.00024168,7]
[366886045,1750549854474,-500.0,0.00024173,2]
[366886046,1750549854484,-500.0,0.00024173,2]
[366886047,1750549854493,-500.0,0.00024173,2]
[366886048,1750549854569,-500.0,0.00024173,2]
[366886049,1750549854585,-460.0,0.00024173,2]
[366886050,1750549854593,-1710.11,0.00024173,2]
[366886051,1750549854602,-463.03,0.00024173,2]
[366886052,1750549854612,-460.0,0.00024173,2]
[366886053,1750549854622,-460.0,0.00024173,2]
[366886054,1750549854632,-460.0,0.00024173,2]
[366886055,1750549854642,-596.58,0.00024174,2]
[366886056,1750549854651,-460.0,0.00024174,2]
[366886057,1750549854661,-151.0,0.00024174,7]
[366886058,1750549854671,-151.0,0.00024174,7]
[366886059,1750549854680,-390.83680144,0.00024174,2]
[366886060,1750549854689,-170.994856,0.00024174,7]
[366886061,1750549854699,-170.994856,0.00024174,7]
[366886062,1750549854709,-151.0,0.00024174,7]
[366886063,1750549854718,-500.0,0.00024174,2]
[366886064,1750549854728,-151.0,0.00024174,7]
[366886065,1750549854736,-151.0,0.00024174,7]
[366886066,1750549854746,-246.298644,0.00024174,7]
[366886067,1750549854755,-500.0,0.00024175,2]
[366886068,1750549854764,-460.0,0.00024175,2]
[366886069,1750549854774,-422.76280062,0.00024175,2]
[366886070,1750549854782,-430.0,0.00024175,2]
[366886071,1750549854791,-462.10012513,0.00024175,2]
[366886072,1750549854801,-370.71691079,0.00024175,2]
[366886073,1750549854810,-475.90325592,0.00024175,2]
[366886074,1750549854819,-427.66326142,0.00024175,2]
[366886075,1750549854828,-460.0,0.00024175,2]
[366886076,1750549854838,-460.0,0.00024175,2]
[366886077,1750549854847,-196.34793689,0.00024175,2]
[366886078,1750549854856,-460.0,0.00024175,2]
[366886079,1750549854867,-460.0,0.00024175,2]
[366886080,1750549854877,-460.0,0.00024175,2]
[366886081,1750549854887,-460.0,0.00024175,2]
[366886082,1750549854896,-460.0,0.00024175,2]
[366886083,1750549854906,-191.23417805,0.00024175,2]
[366886084,1750549854915,-460.0,0.00024175,2]
[366886085,1750549854925,-460.0,0.00024175,2]
[366886086,1750549854933,-460.0,0.00024175,2]
[366886087,1750549854942,-460.0,0.00024175,2]
[366886088,1750549854951,-460.0,0.00024175,2]
[366886089,1750549854961,-460.0,0.00024175,2]
[366886090,1750549854970,-451.62645916,0.00024175,2]
[366886091,1750549854979,-460.0,0.00024175,2]
[366886092,1750549854989,-460.0,0.00024175,2]
[366886093,1750549854998,-460.0,0.00024175,2]
[366886094,1750549855008,-460.0,0.00024175,2]
[366886095,1750549855018,-1710.11,0.00024175,2]
[366886096,1750549855027,-463.03,0.00024175,2]
[366886097,1750549855036,-460.0,0.00024175,2]
[366886098,1750549855046,-460.0,0.00024175,2]
[366886099,1750549855056,-460.0,0.00024175,2]
[366886100,1750549855065,-460.0,0.00024175,2]
[366886101,1750549855075,-460.0,0.00024175,2]
[366886102,1750549855085,-460.0,0.00024175,2]
[366886103,1750549855094,-4032.59385907,0.00024176,10]
[366886104,1750549855103,-596.58,0.00024176,2]
[366886105,1750549855114,-460.0,0.00024176,2]
[366886106,1750549855124,-500.0,0.00024176,2]
[366886107,1750549855133,-596.58,0.0002418,2]
[366886108,1750549855142,-460.0,0.0002418,2]
[366886109,1750549855151,-370.03493039,0.0002418,2]
[366886110,1750549855160,-596.58,0.0002419,2]
[366886111,1750549855169,-596.58,0.0002419,2]
[366886112,1750549855179,-460.0,0.0002419,2]
[366886113,1750549855188,-460.0,0.0002419,2]
[366886114,1750549855197,-151.0,0.0002419,7]
[366886115,1750549855207,-151.0,0.0002419,7]
[366886116,1750549855216,-544.531843,0.0002419,7]